bitfinex/quotes_BTCUSD_20251207
["timestamp","ask_amount","ask_price","bid_price","bid_amount"]
[1765124468644,0.01118505,89405.0,89401.0,0.01118555]
[1765124468839,0.23488,89408.0,89401.0,0.01118555]
[1765124468840,0.01118468,89408.0,89401.0,0.01118555]
[1765124469088,0.01118468,89408.0,89403.0,0.0111853]
[1765124469089,0.01118493,89406.0,89403.0,0.0111853]
[1765124469455,0.01118493,89406.0,89402.0,0.01118543]
[1765124469662,0.0111848,89407.0,89403.0,0.0111853]
[1765124469888,0.0111848,89407.0,89403.0,0.03510504]
[1765124470107,0.03313,89404.0,89403.0,0.02391974]
[1765124470289,0.03313,89404.0,89403.0,0.02491974]
[1765124470485,0.01118455,89409.0,89404.0,0.01118518]
[1765124470706,0.01118455,89409.0,89404.0,0.03510175]
[1765124470903,0.01118468,89408.0,89404.0,0.03510175]
[1765124471110,0.0111848,89407.0,89404.0,0.01118518]
[1765124471528,0.05336503,89415.0,89408.0,0.223692]
[1765124471887,0.01118393,89414.0,89408.0,0.223692]
[1765124472247,0.05336503,89415.0,89413.0,0.01118405]
[1765124472248,0.01776,89415.0,89413.0,0.01118405]
[1765124472382,0.01118393,89414.0,89410.0,0.01118443]
[1765124472583,0.01776,89415.0,89412.0,0.01118418]
[1765124472781,0.0452243,89411.0,89402.0,0.01118543]
[1765124473005,0.01118468,89408.0,89404.0,0.01118518]
[1765124473179,0.01118493,89406.0,89404.0,0.02391337]
[1765124473379,0.01118493,89406.0,89405.0,0.02391337]
[1765124473679,0.01118505,89405.0,89402.0,0.0239158]
[1765124473878,0.01118518,89404.0,89403.0,0.02391582]
[1765124474093,0.22372615,89395.0,89390.0,0.02988028]
[1765124474396,0.28242615,89395.0,89394.0,0.02404172]
[1765124474562,0.33377615,89395.0,89394.0,0.00011803]
[1765124475234,0.0587,89395.0,89394.0,0.00011803]
[1765124475420,0.33377615,89395.0,89394.0,0.00011803]
[1765124476685,0.33377615,89395.0,89394.0,0.00111803]
[1765124476883,0.357593,89395.0,89394.0,0.00011803]
[1765124477173,0.357593,89395.0,89394.0,0.00211803]
[1765124477340,0.33538902,89395.0,89394.0,0.00211803]
[1765124477542,0.358593,89395.0,89394.0,0.00211803]
[1765124478398,0.44425472,89395.0,89394.0,0.00211803]
[1765124478536,0.357593,89395.0,89394.0,0.00211803]
[1765124478738,0.33538902,89395.0,89394.0,0.00211803]
[1765124478937,0.357593,89395.0,89394.0,0.00211803]
[1765124479533,0.357593,89395.0,89394.0,0.00011803]
[1765124479731,0.44515472,89395.0,89394.0,0.00011803]
[1765124479985,0.33738902,89395.0,89394.0,0.00011803]
[1765124480754,0.359593,89395.0,89394.0,0.00011803]
[1765124481171,0.358593,89395.0,89394.0,0.00011803]
[1765124481353,0.358593,89395.0,89394.0,0.00211803]
[1765124481577,0.357593,89395.0,89394.0,0.00211803]
[1765124482738,0.35314902,89395.0,89394.0,0.00211803]
[1765124482967,0.00161287,89395.0,89394.0,0.00211803]
[1765124483296,0.01118568,89400.0,89394.0,0.00396803]
[1765124483444,0.03404,89395.0,89394.0,0.00211803]
[1765124483643,0.04085606,89395.0,89394.0,0.00211803]
[1765124484045,0.00681606,89395.0,89394.0,0.00211803]
[1765124484248,0.01118568,89400.0,89396.0,0.01118618]
[1765124484478,0.01118568,89400.0,89395.0,0.0111863]
[1765124484687,0.01118555,89401.0,89397.0,0.01118605]
[1765124484834,0.01118543,89402.0,89399.0,0.0111858]
[1765124485032,0.01118543,89402.0,89398.0,0.01118593]
[1765124485242,0.01776,89404.0,89400.0,0.01118568]
[1765124485436,0.02894518,89404.0,89400.0,0.01118568]
[1765124485642,0.0111853,89403.0,89399.0,0.0111858]
[1765124485846,0.23489247,89403.0,89398.0,0.01118593]
[1765124486055,0.00681606,89402.0,89398.0,0.01118593]
[1765124486288,0.0111853,89403.0,89398.0,0.01118593]
[1765124487055,0.0111853,89403.0,89399.0,0.0111858]
[1765124488257,0.01118543,89402.0,89397.0,0.01118605]
[1765124488689,0.01118555,89401.0,89398.0,0.01118593]
[1765124488884,0.01118605,89397.0,89393.0,0.01118655]
[1765124489441,0.03584593,89398.0,89393.0,0.01118655]
[1765124489582,0.03584593,89398.0,89394.0,0.01130446]
[1765124489790,0.02466,89398.0,89395.0,0.23491215]
[1765124489992,0.001,89397.0,89394.0,0.01130446]
[1765124490285,0.02466,89398.0,89395.0,0.23491245]
[1765124490548,0.02566,89398.0,89395.0,0.23491245]
[1765124490902,0.01776,89415.0,89397.0,0.00185]
[1765124491156,0.01776,89415.0,89412.0,0.01118418]
[1765124491509,0.01776,89415.0,89412.0,0.2348656]
[1765124492816,0.01876,89415.0,89412.0,0.2348656]
[1765124493459,0.01876,89415.0,89408.0,0.01118468]
[1765124493460,0.01118393,89414.0,89408.0,0.01118468]
[1765124493637,0.04522405,89413.0,89409.0,0.01118455]
[1765124493848,0.00681606,89412.0,89410.0,0.01118443]
[1765124494454,0.01800024,89412.0,89409.0,0.01118455]
[1765124494659,0.0358443,89411.0,89408.0,0.01118468]
[1765124494866,0.00681606,89410.0,89408.0,0.01118468]
[1765124495562,0.00681606,89410.0,89408.0,0.23487742]
[1765124495927,0.01118543,89402.0,89399.0,0.02988028]
[1765124496139,0.23489562,89402.0,89397.0,0.22372115]
[1765124496326,0.01118505,89405.0,89399.0,0.23490023]
[1765124496568,0.01118455,89409.0,89405.0,0.01118505]
[1765124496771,0.01118455,89409.0,89404.0,0.01118518]
[1765124496772,0.01118468,89408.0,89404.0,0.01118518]
[1765124496943,0.01118455,89409.0,89406.0,0.01118493]
[1765124497143,0.01118455,89409.0,89405.0,0.01118505]
[1765124497350,0.00161287,89410.0,89407.0,0.0111848]
[1765124497551,0.01118455,89409.0,89405.0,0.23488618]
[1765124497754,0.0127973,89410.0,89406.0,0.01118493]
[1765124498116,0.001,89409.0,89406.0,0.01118493]
[1765124498326,0.001,89409.0,89407.0,0.23487951]
[1765124498741,0.0127973,89410.0,89405.0,0.01118505]
[1765124498954,0.01118518,89404.0,89399.0,0.0111858]
[1765124499171,0.00681606,89403.0,89400.0,0.01118568]
[1765124499379,0.00681606,89403.0,89396.0,0.23490898]
[1765124499380,0.01118568,89400.0,89396.0,0.23490898]
[1765124499580,0.01118555,89401.0,89398.0,0.01118593]
[1765124500001,0.01118555,89401.0,89399.0,0.001]
[1765124500403,0.01118555,89401.0,89397.0,0.01118605]
[1765124500742,0.01118543,89402.0,89399.0,0.0111858]
[1765124500950,0.01800136,89403.0,89399.0,0.0111858]
[1765124501152,0.00681606,89403.0,89400.0,0.01118568]
[1765124501470,0.23488216,89407.0,89402.0,0.01118543]
[1765124501711,0.00161287,89410.0,89406.0,0.01118493]
[1765124501911,0.00161287,89410.0,89407.0,0.0111848]
[1765124502275,0.00161287,89410.0,89408.0,0.22369362]
[1765124502563,0.00161287,89410.0,89407.0,0.0111848]
[1765124502691,0.00361287,89410.0,89408.0,0.22369362]
[1765124503102,0.00161287,89410.0,89408.0,0.22369362]
[1765124503285,0.003,89410.0,89409.0,0.01118455]
[1765124503486,0.004,89410.0,89409.0,0.01118455]
[1765124504143,0.003,89410.0,89409.0,0.01118455]
[1765124504578,0.004,89410.0,89409.0,0.01118455]
[1765124504910,0.003,89410.0,89409.0,0.01118455]
[1765124505155,0.01776,89415.0,89413.0,0.22368112]
[1765124505533,0.01118343,89418.0,89415.0,0.0111838]
[1765124506663,0.01118418,89412.0,89409.0,0.01118455]
[1765124507020,0.01118418,89412.0,89405.0,0.01118505]
[1765124507264,0.01118443,89410.0,89407.0,0.0111848]
[1765124507469,0.01118455,89409.0,89405.0,0.23488599]
[1765124507846,0.01118468,89408.0,89401.0,0.323]
[1765124508061,0.01118568,89400.0,89395.0,0.02988028]
[1765124508283,0.03118,89402.0,89398.0,0.01118593]
[1765124508429,0.23487073,89411.0,89403.0,0.23488904]
[1765124508632,0.01118493,89406.0,89402.0,0.23489397]
[1765124508840,0.01118455,89409.0,89405.0,0.01118505]
[1765124509077,0.01118468,89408.0,89404.0,0.01118518]
[1765124509306,0.01118468,89408.0,89405.0,0.01118505]
[1765124510245,0.01118468,89408.0,89402.0,0.01118543]
[1765124510451,0.01118468,89408.0,89404.0,0.01118518]
[1765124510664,0.01118493,89406.0,89403.0,0.0111853]
[1765124510865,0.01118468,89408.0,89405.0,0.01118505]
[1765124511398,0.24169708,89407.0,89403.0,0.0111853]
[1765124511602,0.01118505,89405.0,89401.0,0.01118555]
[1765124511852,0.23488881,89404.0,89400.0,0.22371357]
[1765124512271,0.01118518,89404.0,89400.0,0.23489925]
[1765124512480,0.01118568,89400.0,89396.0,0.2349091]
[1765124512709,0.23489364,89403.0,89398.0,0.22371865]
[1765124512906,0.01118493,89406.0,89401.0,0.23489472]
[1765124513103,0.00681606,89405.0,89401.0,0.23489472]
[1765124513323,0.01118518,89404.0,89400.0,0.002]
[1765124513684,0.0111853,89403.0,89400.0,0.01318568]
[1765124514297,0.0111853,89403.0,89400.0,0.01118568]
[1765124514494,0.0111853,89403.0,89400.0,0.01218568]
[1765124514896,0.23489368,89403.0,89400.0,0.001]
[1765124515103,0.22371083,89402.0,89400.0,0.001]
[1765124515323,0.22371083,89402.0,89400.0,0.003]
[1765124515640,0.23489368,89403.0,89400.0,0.002]
[1765124516169,0.23489368,89403.0,89400.0,0.001]
[1765124516454,0.23489368,89403.0,89400.0,0.003]
[1765124517662,0.23489368,89403.0,89400.0,0.001]
[1765124517873,0.22370864,89402.0,89400.0,0.003]
[1765124518271,0.03118,89401.0,89400.0,0.003]
[1765124518503,0.07771,89401.0,89400.0,0.003]
[1765124518706,0.07771,89401.0,89400.0,0.001]
[1765124518998,0.01118605,89397.0,89394.0,0.00011803]
[1765124519275,0.25490615,89395.0,89394.0,0.00011803]
[1765124519681,0.30143615,89395.0,89394.0,0.00011803]
[1765124520460,0.31418678,89395.0,89394.0,0.00011803]
[1765124520682,0.30143615,89395.0,89394.0,0.00011803]
[1765124520882,0.30143615,89395.0,89394.0,0.00111803]
[1765124521081,0.30143615,89395.0,89394.0,0.00411803]
[1765124521510,0.30143615,89395.0,89394.0,0.00111803]
[1765124521686,0.30143615,89395.0,89394.0,0.00311803]
[1765124522104,0.30143615,89395.0,89394.0,0.00211803]
[1765124523952,0.32364013,89395.0,89394.0,0.00211803]
[1765124524963,0.32364013,89395.0,89394.0,0.00011803]
[1765124525342,0.32364013,89395.0,89394.0,0.00111803]
[1765124525778,0.30143615,89395.0,89394.0,0.00111803]
[1765124532469,0.32049615,89395.0,89394.0,0.00111803]
[1765124533129,0.02264,89398.0,89394.0,0.00111803]
[1765124533317,0.03382593,89398.0,89394.0,0.00111803]
[1765124533514,0.03382593,89398.0,89394.0,0.01230446]
[1765124534101,0.03382593,89398.0,89395.0,0.0111863]
[1765124534235,0.02264,89398.0,89395.0,0.0111863]
[1765124534439,0.02264,89398.0,89396.0,0.22372365]
[1765124534640,0.02364,89398.0,89396.0,0.22372365]
[1765124535075,0.02364,89398.0,89395.0,0.0111863]
[1765124535239,0.02264,89398.0,89395.0,0.0111863]
[1765124535443,0.02364,89398.0,89395.0,0.0111863]
[1765124536057,0.02264,89398.0,89395.0,0.0111863]
[1765124536474,0.02364,89398.0,89396.0,0.22372365]
[1765124536667,0.02564,89398.0,89396.0,0.22372365]
[1765124536882,0.02364,89398.0,89396.0,0.22372365]
[1765124537288,0.02564,89398.0,89396.0,0.22372365]
[1765124537489,0.02364,89398.0,89396.0,0.22372365]
[1765124537670,0.0111853,89403.0,89399.0,0.0111858]
[1765124537881,0.05145518,89404.0,89400.0,0.01118568]
[1765124538184,0.01118543,89402.0,89398.0,0.01118593]
[1765124538397,0.00681606,89401.0,89398.0,0.01118593]
[1765124538796,0.01118568,89400.0,89394.0,0.22384604]
[1765124539068,0.05447,89395.0,89394.0,0.00011803]
[1765124539248,0.06128606,89395.0,89394.0,0.00011803]
[1765124539506,0.13132004,89395.0,89394.0,0.00011803]
[1765124540264,0.13232004,89395.0,89394.0,0.00011803]
[1765124540428,0.13132004,89395.0,89394.0,0.00011803]
[1765124540834,0.13132004,89395.0,89394.0,0.00111803]
[1765124541300,0.13232004,89395.0,89394.0,0.00111803]
[1765124541659,0.13132004,89395.0,89394.0,0.00111803]
[1765124542468,0.10911606,89395.0,89394.0,0.00111803]
[1765124543461,0.02932606,89395.0,89394.0,0.00111803]
[1765124543661,0.02251,89395.0,89394.0,0.00111803]
[1765124544306,0.12614729,89395.0,89394.0,0.00111803]
[1765124544480,0.14153521,89395.0,89394.0,0.00111803]
[1765124544845,0.14835127,89395.0,89394.0,0.00111803]
[1765124544975,0.14153521,89395.0,89394.0,0.00111803]
[1765124545176,0.14835127,89395.0,89394.0,0.00111803]
[1765124545581,0.21369039,89395.0,89394.0,0.00111803]
[1765124545787,0.23589437,89395.0,89394.0,0.00111803]
[1765124546000,0.11933123,89395.0,89394.0,0.00111803]
[1765124546206,0.12614729,89395.0,89394.0,0.00111803]
[1765124546405,0.14835127,89395.0,89394.0,0.00111803]
[1765124547842,0.95814827,89395.0,89394.0,0.00111803]
[1765124548045,0.95133221,89395.0,89394.0,0.00111803]
[1765124548942,0.31668521,89395.0,89394.0,0.00085803]
[1765124549378,0.29448123,89395.0,89394.0,0.00085803]
[1765124549622,0.4210617,89395.0,89394.0,0.00085803]
[1765124550741,0.48358469,89395.0,89394.0,0.00085803]
[1765124551548,0.80658469,89395.0,89394.0,0.00085803]
[1765124551797,0.80658469,89395.0,89360.0,0.0004]
[1765124551798,0.01118956,89369.0,89362.0,0.22380877]
[1765124552028,0.01776,89370.0,89368.0,0.01118968]
[1765124552151,0.01776,89370.0,89366.0,0.2349871]
[1765124552352,0.01776,89370.0,89367.0,0.01118981]
[1765124552559,0.01776,89370.0,89368.0,0.22379375]
[1765124553209,0.02251,89380.0,89376.0,0.01118868]
[1765124553438,0.01776,89379.0,89377.0,0.01118856]
[1765124553617,0.01776,89379.0,89376.0,0.01118868]
[1765124553932,0.01776,89392.0,89387.0,0.23493256]
[1765124554147,0.01776,89392.0,89390.0,0.01118693]
[1765124554352,0.01776,89392.0,89391.0,0.22373617]
[1765124554505,0.01776,89392.0,89390.0,0.01118693]
[1765124555121,0.01876,89392.0,89390.0,0.01118693]
[1765124555684,0.01876,89392.0,89391.0,0.22373617]
[1765124556012,0.02176,89392.0,89391.0,0.22373617]
[1765124556212,0.01776,89392.0,89391.0,0.22373617]
[1765124556521,0.02076,89392.0,89391.0,0.22373617]
[1765124557147,0.01976,89392.0,89391.0,0.22373617]
[1765124557370,0.02076,89392.0,89391.0,0.22373617]
[1765124557798,0.01876,89392.0,89391.0,0.22373617]
[1765124558184,0.02176,89392.0,89391.0,0.22373617]
[1765124559914,0.02176,89392.0,89388.0,0.01118718]
[1765124560209,0.02176,89392.0,89375.0,0.22377387]
[1765124560210,0.01118718,89388.0,89382.0,0.22375715]
[1765124561775,0.01118718,89388.0,89385.0,0.01118755]
[1765124562239,0.0111868,89391.0,89387.0,0.0111873]
[1765124562419,0.01800286,89391.0,89387.0,0.0111873]
[1765124562919,0.01118693,89390.0,89385.0,0.01118755]
[1765124563276,0.01118693,89390.0,89386.0,0.01118743]
[1765124563499,0.01118705,89389.0,89385.0,0.01118755]
[1765124563872,0.01118705,89389.0,89385.0,0.23493818]
[1765124564436,0.0111873,89387.0,89384.0,0.01118768]
[1765124565099,0.01118705,89389.0,89385.0,0.01118755]
[1765124565295,0.02894668,89392.0,89388.0,0.01118718]
[1765124565500,0.02457606,89392.0,89389.0,0.01118705]
[1765124566624,0.02457606,89392.0,89390.0,0.22373867]
[1765124566944,0.00681606,89392.0,89390.0,0.22373867]
[1765124567178,0.02251,89393.0,89390.0,0.2349256]
[1765124567394,0.00681606,89392.0,89390.0,0.2349256]
[1765124567614,0.00781606,89392.0,89390.0,0.2349256]
[1765124567838,0.00681606,89392.0,89390.0,0.2349256]
[1765124568294,0.02251,89404.0,89395.0,0.22372615]
[1765124568507,0.01776,89405.0,89403.0,0.0111853]
[1765124568712,0.0178779,89405.0,89404.0,0.22370363]
[1765124568915,0.0001179,89405.0,89404.0,0.22370363]
[1765124570285,0.0001179,89405.0,89404.0,0.22470363]
[1765124570892,0.0001179,89405.0,89404.0,0.22770363]
[1765124571661,0.0537679,89405.0,89404.0,0.004]
[1765124571858,0.0001179,89405.0,89404.0,0.004]
[1765124573592,0.0001179,89405.0,89404.0,0.02620398]
[1765124575591,0.0001179,89405.0,89404.0,0.004]
[1765124578205,0.24579903,89405.0,89404.0,0.004]
[1765124578411,0.0220979,89405.0,89404.0,0.004]
[1765124580020,0.0535179,89405.0,89404.0,0.004]
[1765124580915,0.10877683,89405.0,89404.0,0.004]
[1765124581134,0.10196077,89405.0,89404.0,0.004]
[1765124581782,0.05513077,89405.0,89404.0,0.004]
[1765124581985,0.10196077,89405.0,89404.0,0.004]
[1765124582457,0.18432343,89405.0,89404.0,0.004]
[1765124583220,0.18432343,89405.0,89404.0,0.003]
[1765124583451,0.10196077,89405.0,89404.0,0.003]
[1765124583662,0.05513077,89405.0,89404.0,0.001]
[1765124583879,0.05713077,89405.0,89404.0,0.001]
[1765124584288,0.05513077,89405.0,89404.0,0.001]
[1765124585119,0.05613077,89405.0,89404.0,0.001]
[1765124585635,0.0001179,89405.0,89404.0,0.22470363]
[1765124585831,0.0001179,89405.0,89404.0,0.001]
[1765124586417,0.22381903,89405.0,89404.0,0.001]
[1765124586584,0.0001179,89405.0,89404.0,0.001]
[1765124588980,0.27721903,89405.0,89404.0,0.001]
[1765124589184,0.32404903,89405.0,89404.0,0.001]
[1765124589527,0.3256619,89405.0,89404.0,0.001]
[1765124595447,0.2788319,89405.0,89404.0,0.001]
[1765124595654,0.40241184,89405.0,89404.0,0.001]
[1765124595855,0.42461582,89405.0,89404.0,0.001]
[1765124596089,0.01118843,89378.0,89375.0,0.03976014]
[1765124596337,0.01118755,89385.0,89380.0,0.23495084]
[1765124596541,0.01118755,89385.0,89367.0,0.22590026]
[1765124596542,0.01118793,89382.0,89378.0,0.01118843]
[1765124596748,0.01118806,89381.0,89377.0,0.2349597]
[1765124596940,0.01118806,89381.0,89378.0,0.01118843]
[1765124597383,0.01118818,89380.0,89377.0,0.01118856]
[1765124597531,0.01118856,89377.0,89374.0,0.01118893]
[1765124597736,0.01118818,89380.0,89377.0,0.01118856]
[1765124597933,0.22375194,89385.0,89377.0,0.01118856]
[1765124597934,0.01118755,89385.0,89381.0,0.01118806]
[1765124598168,0.2579565,89386.0,89382.0,0.01118793]
[1765124598374,0.01118793,89382.0,89378.0,0.23495714]
[1765124598571,0.0111878,89383.0,89379.0,0.01118831]
[1765124599081,0.001,89380.0,89379.0,0.01118831]
[1765124599285,0.01118793,89382.0,89379.0,0.01118831]
[1765124599457,0.23495174,89381.0,89374.0,0.01118893]
[1765124599638,0.01118793,89382.0,89374.0,0.01118893]
[1765124599639,0.01118843,89378.0,89374.0,0.01118893]
[1765124599837,0.001,89382.0,89375.0,0.23496426]
[1765124599838,0.01118831,89379.0,89375.0,0.23496426]
[1765124600158,0.01118818,89380.0,89376.0,0.01118868]
[1765124600560,0.23593988,89385.0,89379.0,0.01118831]
[1765124600763,0.0111878,89383.0,89379.0,0.01118831]
[1765124600962,0.0111878,89383.0,89380.0,0.01118818]
[1765124601164,0.01118843,89378.0,89370.0,0.01118943]
[1765124601366,0.22375619,89383.0,89365.0,0.22380099]
[1765124601367,0.01118931,89371.0,89367.0,0.04116879]
[1765124601697,0.01118906,89373.0,89369.0,0.323]
[1765124601900,0.01118943,89370.0,89367.0,0.02997898]
[1765124602084,0.01118931,89371.0,89367.0,0.04116879]
[1765124602354,0.01118931,89371.0,89363.0,0.26497554]
[1765124602355,0.01118968,89368.0,89363.0,0.26497554]
[1765124602528,0.01118968,89368.0,89363.0,0.23499656]
[1765124602832,0.01118943,89370.0,89369.0,0.001]
[1765124604061,0.01118943,89370.0,89366.0,0.01118993]
[1765124604260,0.01118906,89373.0,89368.0,0.23498178]
[1765124604418,0.01118918,89372.0,89369.0,0.001]
[1765124604622,0.01118931,89371.0,89369.0,0.001]
[1765124605030,0.01118931,89371.0,89369.0,0.005]
[1765124605229,0.22377872,89374.0,89369.0,0.22879069]
[1765124605417,0.01118881,89375.0,89369.0,0.22379069]
[1765124605621,0.01118881,89375.0,89369.0,0.22779069]
[1765124605823,0.2237647,89380.0,89369.0,0.22779069]
[1765124605824,0.01776,89380.0,89378.0,0.01118843]
[1765124606057,0.01776,89380.0,89377.0,0.01118856]
[1765124606260,0.01776,89380.0,89377.0,0.23495845]
[1765124606470,0.02894818,89380.0,89375.0,0.234965]
[1765124606824,0.2349546,89379.0,89376.0,0.01118868]
[1765124607021,0.01118806,89381.0,89377.0,0.01118856]
[1765124607219,0.25269972,89385.0,89381.0,0.01118806]
[1765124607475,0.01776,89385.0,89381.0,0.23494824]
[1765124607675,0.0111878,89383.0,89379.0,0.23495388]
[1765124607889,0.0111878,89383.0,89380.0,0.01118818]
[1765124608391,0.01118755,89385.0,89382.0,0.01118793]
[1765124608542,0.23494137,89384.0,89381.0,0.002]
[1765124608749,0.23494662,89382.0,89378.0,0.01118843]
[1765124609133,0.23494662,89382.0,89380.0,0.003]
[1765124609905,0.00681606,89381.0,89380.0,0.003]
[1765124610108,0.07869606,89381.0,89380.0,0.003]
[1765124610863,0.01118943,89370.0,89367.0,0.323]
[1765124611065,0.01118943,89370.0,89367.0,0.33418981]
[1765124611600,0.01118956,89369.0,89366.0,0.01118993]
[1765124611794,0.01118943,89370.0,89367.0,0.01118981]
[1765124612386,0.01418943,89370.0,89367.0,0.01118981]
[1765124612751,0.003,89370.0,89367.0,0.2349854]
[1765124613222,0.004,89370.0,89367.0,0.01118981]
[1765124613904,0.01518943,89370.0,89367.0,0.01118981]
[1765124614123,0.01518943,89370.0,89365.0,0.01119006]
[1765124614124,0.01118956,89369.0,89365.0,0.01119006]
[1765124614307,0.004,89370.0,89367.0,0.23498606]
[1765124615045,0.004,89370.0,89368.0,0.22379141]
[1765124615950,0.003,89370.0,89368.0,0.22379141]
[1765124616108,0.001,89369.0,89368.0,0.22379141]
[1765124616317,0.001,89369.0,89368.0,0.22337577]
[1765124616531,0.003,89370.0,89368.0,0.22337577]
[1765124616736,0.01418943,89370.0,89366.0,0.01118993]
[1765124616949,0.004,89370.0,89366.0,0.01118993]
[1765124617153,0.01118956,89369.0,89364.0,0.23499394]
[1765124617410,0.01118968,89368.0,89365.0,0.01119006]
[1765124617586,0.01518943,89370.0,89366.0,0.23498803]
[1765124617794,0.01118943,89370.0,89366.0,0.23498803]
[1765124617958,0.01418943,89370.0,89366.0,0.23498803]
[1765124618160,0.01418943,89370.0,89366.0,0.01118993]
[1765124618396,0.02302,89367.0,89359.0,0.23500643]
[1765124618607,0.02302,89367.0,89364.0,0.23499394]
[1765124618822,0.03420981,89367.0,89364.0,0.01119018]
[1765124618985,0.02302,89367.0,89364.0,0.01119018]
[1765124619187,0.01118956,89369.0,89365.0,0.01119006]
[1765124619411,0.01118981,89367.0,89364.0,0.01119018]
[1765124619627,0.02302,89365.0,89361.0,0.32311819]
[1765124619782,0.24682126,89365.0,89361.0,0.32311819]
[1765124619987,0.02302,89365.0,89362.0,0.01119043]
[1765124620209,0.02302,89365.0,89361.0,0.32311819]
[1765124620393,0.01119018,89364.0,89361.0,0.33430875]
[1765124620587,0.03421006,89365.0,89361.0,0.01130875]
[1765124621020,0.0003322,89364.0,89361.0,0.01130875]
[1765124621576,0.0013322,89364.0,89361.0,0.23511767]
[1765124621781,0.0003322,89364.0,89361.0,0.23511767]
[1765124621986,0.0003322,89362.0,89361.0,0.23511767]
[1765124622501,0.0725822,89362.0,89361.0,0.00011819]
[1765124622783,0.0003322,89362.0,89361.0,0.22392947]
[1765124623129,0.0013322,89362.0,89361.0,0.22392947]
[1765124623570,0.0043322,89362.0,89361.0,0.22392947]
[1765124624295,0.0043322,89362.0,89361.0,0.00011819]
[1765124624296,0.0765822,89362.0,89361.0,0.00011819]
[1765124626219,0.0319322,89362.0,89361.0,0.00011819]
[1765124626433,0.30039097,89362.0,89361.0,0.00011819]
[1765124626659,0.0319322,89362.0,89361.0,0.00011819]
[1765124626812,0.0043322,89362.0,89361.0,0.00011819]
[1765124628693,0.0043322,89362.0,89361.0,0.11431569]
[1765124629022,0.0043322,89362.0,89361.0,0.13651967]
[1765124632467,0.0043322,89362.0,89361.0,0.45951967]
[1765124632679,0.0043322,89362.0,89361.0,0.47254858]
[1765124633091,0.0043322,89362.0,89361.0,0.43278844]
[1765124633280,0.0013322,89362.0,89361.0,0.43278844]
[1765124633910,0.0013322,89362.0,89361.0,0.49186954]
[1765124634516,0.0003322,89362.0,89361.0,0.40440327]
[1765124635191,2.2e-06,89362.0,89361.0,0.42799058]
[1765124635329,0.01118655,89393.0,89389.0,0.01118705]
[1765124635525,0.01118655,89393.0,89382.0,0.01118793]
[1765124635526,0.01118705,89389.0,89383.0,0.0111878]
[1765124635729,0.01118806,89381.0,89378.0,0.01118843]
[1765124635958,0.01118806,89381.0,89378.0,0.01113796]
[1765124636156,0.23495077,89381.0,89375.0,0.01118881]
[1765124636330,0.04099831,89379.0,89376.0,0.01118868]
[1765124636753,0.02981,89377.0,89376.0,0.01118868]
[1765124637101,0.01118868,89376.0,89373.0,0.01118906]
[1765124637304,0.0213,89374.0,89373.0,0.01118906]
[1765124638183,0.0213,89374.0,89372.0,0.01118918]
[1765124638388,0.01118918,89372.0,89369.0,0.36415217]
[1765124638713,0.01118918,89372.0,89369.0,0.02996261]
[1765124638714,0.02981,89370.0,89369.0,0.02996261]
[1765124638914,0.04099943,89370.0,89366.0,0.01118993]
[1765124639060,0.05111,89367.0,89366.0,0.01118993]
[1765124639266,0.05111,89367.0,89364.0,0.01119018]
[1765124639470,0.05111,89367.0,89364.0,0.23499307]
[1765124640577,0.22380877,89362.0,89360.0,0.0004]
[1765124640784,0.22542164,89362.0,89360.0,0.0004]
[1765124640998,0.07332,89361.0,89360.0,0.00051819]
[1765124641215,0.13745586,89361.0,89360.0,0.00051819]
[1765124641707,0.15965984,89361.0,89360.0,0.00051819]
[1765124641937,0.07493287,89361.0,89360.0,0.00051819]
[1765124642154,0.09269287,89361.0,89360.0,0.00051819]
[1765124642369,0.01937287,89361.0,89360.0,0.00051819]
[1765124642577,0.05118287,89361.0,89360.0,0.00051819]
[1765124642795,0.05118287,89361.0,89360.0,0.00151819]
[1765124643007,0.09469287,89361.0,89360.0,0.00051819]
[1765124643435,0.09769287,89361.0,89360.0,0.00051819]
[1765124643643,0.05218287,89361.0,89360.0,0.00051819]
[1765124644065,0.05318287,89361.0,89360.0,0.00051819]
[1765124644216,0.03542287,89361.0,89360.0,0.00051819]
[1765124644459,0.02337287,89361.0,89360.0,0.00051819]
[1765124645649,0.004,89361.0,89360.0,0.00051819]
[1765124645822,0.03381,89361.0,89360.0,0.00051819]
[1765124646049,0.07732,89361.0,89360.0,0.00051819]
[1765124646231,0.004,89361.0,89360.0,0.00051819]
[1765124646670,0.0213,89368.0,89364.0,0.01119018]
[1765124646886,0.01118881,89375.0,89371.0,0.01118931]
[1765124647115,0.01118881,89375.0,89367.0,0.01118981]
[1765124647116,0.02894918,89372.0,89367.0,0.01118981]
[1765124647351,0.05111,89368.0,89364.0,0.01119018]
[1765124647560,0.03662606,89367.0,89364.0,0.01119018]
[1765124648364,0.04781587,89367.0,89362.0,0.01119043]
[1765124648850,0.01118993,89366.0,89363.0,0.01119031]
[1765124649260,0.04100018,89364.0,89361.0,0.01119056]
[1765124649454,0.04100031,89363.0,89360.0,0.00051819]
[1765124649655,0.02981,89361.0,89360.0,0.00051819]
[1765124650064,0.09269287,89361.0,89360.0,0.00051819]
[1765124650713,0.11489685,89361.0,89360.0,0.00151819]
[1765124651122,0.11489685,89361.0,89360.0,0.00051819]
[1765124651830,0.09269287,89361.0,89360.0,0.00251819]
[1765124652022,0.12171291,89361.0,89360.0,0.00251819]
[1765124652458,0.09950893,89361.0,89360.0,0.00251819]
[1765124652582,0.09950893,89361.0,89360.0,0.00051819]
[1765124653016,0.09950893,89361.0,89360.0,0.00151819]
[1765124653602,0.08013606,89361.0,89360.0,0.00151819]
[1765124653991,0.05297606,89361.0,89360.0,0.00151819]
[1765124654194,0.09748606,89361.0,89360.0,0.00151819]
[1765124658488,0.09909893,89361.0,89360.0,0.00151819]
[1765124658722,0.19695597,89361.0,89360.0,0.00151819]
[1765124658934,0.19695597,89361.0,89340.0,0.0004]
[1765124658935,0.22386138,89341.0,89340.0,0.0004]
[1765124659110,0.29280204,89341.0,89340.0,0.0004]
[1765124659408,0.33731204,89341.0,89340.0,0.0004]
[1765124659631,0.35951602,89341.0,89340.0,0.0004]
[1765124660028,0.42203901,89341.0,89340.0,0.0004]
[1765124660277,0.49574771,89341.0,89340.0,0.0004]
[1765124660477,0.40083503,89341.0,89340.0,0.0004]
[1765124660677,0.42303901,89341.0,89340.0,0.0004]
[1765124660827,0.42403901,89341.0,89340.0,0.0004]
[1765124661436,0.42303901,89341.0,89340.0,0.0004]
[1765124661635,0.42603901,89341.0,89340.0,0.0004]
[1765124662406,0.32355204,89341.0,89340.0,0.0004]
[1765124662611,0.05518066,89341.0,89340.0,0.0004]
[1765124662885,0.07294066,89341.0,89340.0,0.0004]
[1765124663305,0.04454066,89341.0,89340.0,0.0004]